fUSD/lending_fUSD_20251001
["ID","MTS","AMOUNT","RATE_DAILY","PERIOD"]
[388792547,1759362648411,-500.0,0.00022191,2]
[388792549,1759362648422,-500.0,0.00022191,2]
[388792551,1759362648431,-1765.58,0.00022191,2]
[388792553,1759362648440,-500.0,0.00022191,2]
[388792555,1759362648451,-500.0,0.00022191,2]
[388792557,1759362648460,-500.0,0.00022191,2]
[388792559,1759362648470,-500.0,0.00022191,2]
[388792561,1759362648482,-303.67305737,0.00022191,2]
[388792563,1759362648491,-500.0,0.00022191,2]
[388792565,1759362648501,-568.27,0.00022191,2]
[388792567,1759362648510,-568.27,0.00022191,2]
[388792569,1759362648519,-850.19,0.00022191,2]
[388792571,1759362648528,-746.02,0.00022191,2]
[388792573,1759362648539,-500.0,0.00022191,2]
[388792575,1759362648548,-500.0,0.00022191,2]
[388792577,1759362648559,-500.0,0.00022191,2]
[388792579,1759362648570,-500.0,0.00022191,2]
[388792581,1759362648583,-500.0,0.00022191,2]
[388792583,1759362648592,-798.65,0.00022191,2]
[388792585,1759362648601,-1376.05,0.00022191,2]
[388792587,1759362648610,-568.41,0.00022191,2]
[388792589,1759362648620,-500.0,0.00022191,2]
[388792591,1759362648629,-500.0,0.00022191,2]
[388792593,1759362648639,-500.0,0.00022191,2]
[388792595,1759362648648,-500.0,0.00022191,2]
[388792597,1759362648658,-500.0,0.00022191,2]
[388792599,1759362648668,-500.0,0.00022191,2]
[388792601,1759362648678,-500.0,0.00022191,2]
[388792603,1759362648687,-500.0,0.00022191,2]
[388792606,1759362648697,-1936.47,0.00022191,2]
[388792607,1759362648708,-500.0,0.00022191,2]
[388792609,1759362648718,-607.62,0.00022191,2]
[388792612,1759362648728,-500.0,0.00022191,2]
[388792614,1759362648738,-574.84,0.00022191,2]
[388792615,1759362648747,-500.0,0.00022191,2]
[388792617,1759362648757,-500.0,0.00022191,2]
[388792620,1759362648766,-454.44683655,0.00022191,2]
[388792622,1759362648776,-725.19,0.00022191,2]
[388792623,1759362648785,-375.61979663,0.00022191,2]
[388792625,1759362648795,-500.0,0.00022191,2]
[388792627,1759362648805,-500.0,0.00022191,2]
[388792629,1759362648814,-500.0,0.00022191,2]
[388792631,1759362648824,-500.0,0.00022191,2]
[388792633,1759362648834,-500.0,0.00022191,2]
[388792635,1759362648845,-500.0,0.00022191,2]
[388792637,1759362648854,-500.0,0.00022191,2]
[388792639,1759362648863,-465.92011132,0.00022191,2]
[388792641,1759362648872,-500.0,0.00022191,2]
[388792643,1759362648881,-598.85827514,0.00022191,2]
[388792645,1759362648890,-500.0,0.00022191,2]
[388792647,1759362648899,-500.0,0.00022191,2]
[388792649,1759362648908,-151.0,0.00022191,2]
[388792651,1759362648918,-500.0,0.00022191,2]
[388792653,1759362648927,-500.0,0.00022191,2]
[388792655,1759362648936,-500.0,0.00022191,2]
[388792657,1759362648945,-500.0,0.00022191,2]
[388792659,1759362648954,-500.0,0.00022191,2]
[388792661,1759362648963,-1301.0,0.00022191,2]
[388792663,1759362648973,-500.0,0.00022191,2]
[388792665,1759362648982,-500.0,0.00022191,2]
[388792667,1759362648991,-697.5,0.00022191,2]
[388792668,1759362649001,-706.14,0.00022191,2]
[388792670,1759362649011,-500.0,0.00022191,2]
[388792672,1759362649020,-500.0,0.00022191,2]
[388792674,1759362649030,-500.0,0.00022191,2]
[388792676,1759362649040,-539.62,0.00022191,2]
[388792679,1759362649049,-500.0,0.00022191,2]
[388792681,1759362649059,-605.51,0.00022191,2]
[388792682,1759362649068,-500.0,0.00022191,2]
[388792685,1759362649078,-558.42,0.00022191,2]
[388792686,1759362649087,-500.0,0.00022191,2]
[388792688,1759362649096,-940.85,0.00022191,2]
[388792690,1759362649105,-500.0,0.00022191,2]
[388792692,1759362649115,-594.17,0.00022191,2]
[388792694,1759362649124,-500.0,0.00022191,2]
[388792696,1759362649133,-555.32,0.00022191,2]
[388792698,1759362649143,-500.0,0.00022191,2]
[388792700,1759362649152,-665.23,0.00022191,2]
[388792702,1759362649162,-500.0,0.00022191,2]
[388792704,1759362649171,-970.2,0.00022191,2]
[388792706,1759362649180,-500.0,0.00022191,2]
[388792708,1759362649190,-833.78,0.00022191,2]
[388792710,1759362649200,-558.18235599,0.00022191,2]
[388792712,1759362649209,-545.72,0.00022191,2]
[388792714,1759362649219,-522.98,0.00022191,2]
[388792716,1759362649228,-500.0,0.00022191,2]
[388792718,1759362649237,-500.0,0.00022191,2]
[388792720,1759362649247,-500.0,0.00022191,2]
[388792722,1759362649257,-500.0,0.00022191,2]
[388792724,1759362649266,-793.14,0.00022191,2]
[388792726,1759362649275,-500.0,0.00022191,2]
[388792728,1759362649284,-500.0,0.00022191,2]
[388792730,1759362649294,-500.0,0.00022191,2]
[388792731,1759362649303,-500.0,0.00022191,2]
[388792732,1759362649312,-547.61,0.00022191,2]
[388792733,1759362649321,-500.0,0.00022191,2]
[388792734,1759362649330,-636.56,0.00022191,2]
[388792735,1759362649339,-965.6,0.00022191,2]
[388792736,1759362649349,-500.0,0.00022191,2]
[388792737,1759362649358,-500.0,0.00022191,2]
[388792738,1759362649372,-500.0,0.00022191,2]
[388792739,1759362649381,-500.0,0.00022191,2]
[388792740,1759362649391,-500.0,0.00022191,2]
[388792741,1759362649404,-500.0,0.00022191,2]
[388792742,1759362649414,-1063.2,0.00022191,2]
[388792743,1759362649423,-500.0,0.00022191,2]
[388792744,1759362649433,-545.7,0.00022191,2]
[388792745,1759362649443,-500.0,0.00022191,2]
[388792746,1759362649452,-500.0,0.00022191,2]
[388792747,1759362649462,-410.28756788,0.00022191,2]
[388792748,1759362649471,-500.0,0.00022191,2]
[388792749,1759362649481,-500.0,0.00022191,2]
[388792750,1759362649491,-637.66,0.00022191,2]
[388792751,1759362649501,-500.0,0.00022191,2]
[388792752,1759362649510,-500.0,0.00022191,2]
[388792753,1759362649521,-500.0,0.00022191,2]
[388792754,1759362649530,-1087.41,0.00022191,2]
[388792755,1759362649540,-310.52712426,0.00022191,2]
[388792756,1759362649550,-500.0,0.00022191,2]
[388792757,1759362649560,-500.0,0.00022191,2]
[388792758,1759362649569,-1761.77,0.00022191,2]
[388792759,1759362649580,-500.0,0.00022191,2]
[388792760,1759362649590,-500.0,0.00022191,2]
[388792761,1759362649599,-500.0,0.00022191,2]
[388792762,1759362649609,-500.0,0.00022191,2]
[388792763,1759362649619,-1461.12,0.00022191,2]
[388792764,1759362649628,-1944.79,0.00022191,2]
[388792765,1759362649638,-1253.34,0.00022191,2]
[388792766,1759362649647,-500.0,0.00022191,2]
[388792767,1759362649657,-500.0,0.00022191,2]
[388792768,1759362649667,-500.0,0.00022191,2]
[388792769,1759362649676,-500.0,0.00022191,2]
[388792770,1759362649686,-1277.84,0.00022191,2]
[388792771,1759362649696,-525.47118824,0.00022191,2]
[388792772,1759362649705,-1224.6,0.00022191,2]
[388792773,1759362649715,-500.0,0.00022191,2]
[388792774,1759362649725,-1254.36,0.00022191,2]
[388792775,1759362649736,-1027.51,0.00022191,2]
[388792776,1759362649746,-1550.83,0.00022191,2]
[388792777,1759362649755,-865.74,0.00022191,2]
[388792778,1759362649765,-500.0,0.00022191,2]
[388792780,1759362649774,-844.23,0.00022191,2]
[388792782,1759362649784,-500.0,0.00022191,2]
[388792784,1759362649794,-1006.79,0.00022191,2]
[388792786,1759362649804,-500.0,0.00022191,2]
[388792788,1759362649813,-2025.03,0.00022191,2]
[388792790,1759362649823,-500.0,0.00022191,2]
[388792792,1759362649832,-500.0,0.00022191,2]
[388792794,1759362649841,-500.0,0.00022191,2]
[388792796,1759362649851,-643.31,0.00022191,2]
[388792798,1759362649860,-1402.02,0.00022191,2]
[388792800,1759362649870,-764.97,0.00022191,2]
[388792802,1759362649879,-500.0,0.00022191,2]
[388792804,1759362649890,-500.0,0.00022191,2]
[388792823,1759362649899,-500.0,0.00022191,2]
[388792830,1759362650106,-500.0,0.00022191,2]
[388792832,1759362650117,-500.0,0.00022191,2]
[388792834,1759362650126,-500.0,0.00022191,2]
[388792836,1759362650136,-505.29,0.00022191,2]
[388792838,1759362650145,-500.0,0.00022191,2]
[388792840,1759362650155,-500.0,0.00022191,2]
[388792842,1759362650164,-500.0,0.00022191,2]
[388792844,1759362650174,-500.0,0.00022191,2]
[388792846,1759362650183,-500.0,0.00022191,2]
[388792848,1759362650193,-500.0,0.00022191,2]
[388792850,1759362650202,-482.68337587,0.00022191,2]
[388792852,1759362650212,-1987.34,0.00022191,2]
[388792854,1759362650221,-500.0,0.00022191,2]
[388792856,1759362650230,-500.0,0.00022191,2]
[388792858,1759362650240,-500.0,0.00022191,2]
[388792860,1759362650249,-624.92161997,0.00022191,2]
[388792862,1759362650259,-500.0,0.00022191,2]
[388792864,1759362650268,-2475.85,0.00022191,2]
[388792866,1759362650278,-500.0,0.00022191,2]
[388792868,1759362650288,-2417.66,0.00022191,2]
[388792870,1759362650297,-654.3,0.00022191,2]
[388792872,1759362650307,-521.08,0.00022191,2]
[388792874,1759362650316,-982.76,0.00022191,2]
[388792876,1759362650326,-500.0,0.00022191,2]
[388792878,1759362650335,-500.0,0.00022191,2]
[388792880,1759362650344,-1176.04,0.00022191,2]
[388792882,1759362650354,-500.0,0.00022191,2]
[388792885,1759362650364,-500.0,0.00022191,2]
[388792887,1759362650378,-1146.48,0.00022191,2]
[388792889,1759362650388,-500.0,0.00022191,2]
[388792891,1759362650399,-900.6,0.00022191,2]
[388792893,1759362650413,-701.11,0.00022191,2]
[388792896,1759362650423,-1035.87,0.00022191,2]
[388792898,1759362650433,-500.0,0.00022191,2]
[388792900,1759362650444,-500.0,0.00022191,2]
[388792902,1759362650453,-2583.02,0.00022191,2]
[388792904,1759362650464,-2297.13,0.00022191,2]
[388792906,1759362650474,-798.02,0.00022191,2]
[388792908,1759362650484,-500.0,0.00022191,2]
[388792910,1759362650493,-500.0,0.00022191,2]
[388792912,1759362650504,-503.71,0.00022191,2]
[388792914,1759362650514,-221.58744974,0.00022191,2]
[388792916,1759362650524,-3005.93,0.00022191,2]
[388792918,1759362650534,-500.0,0.00022191,2]
[388792920,1759362650544,-2065.77,0.00022191,2]
[388792922,1759362650554,-500.0,0.00022191,2]
[388792924,1759362650563,-850.01,0.00022191,2]
[388792926,1759362650573,-852.48,0.00022191,2]
[388792929,1759362650583,-1090.16,0.00022191,2]
[388792931,1759362650592,-1925.46,0.00022191,2]
[388792933,1759362650602,-754.42,0.00022191,2]
[388792935,1759362650611,-6115.12,0.00022191,2]
[388792937,1759362650621,-2307.91,0.00022191,2]
[388792939,1759362650631,-584.03,0.00022191,2]
[388792941,1759362650641,-500.0,0.00022191,2]
[388792943,1759362650651,-2386.56,0.00022191,2]
[388792945,1759362650660,-500.0,0.00022191,2]
[388792947,1759362650670,-2425.23,0.00022191,2]
[388792949,1759362650679,-5156.57,0.00022191,2]
[388792951,1759362650689,-673.34,0.00022191,2]
[388792953,1759362650699,-500.0,0.00022191,2]
[388792955,1759362650709,-1886.75,0.00022191,2]
[388792957,1759362650718,-1140.08,0.00022191,2]
[388792959,1759362650728,-631.99,0.00022191,2]
[388792961,1759362650738,-2160.9,0.00022191,2]
[388792963,1759362650748,-500.0,0.00022191,2]
[388792965,1759362650758,-805.79,0.00022191,2]
[388792967,1759362650767,-500.0,0.00022191,2]
[388792969,1759362650778,-1586.72,0.00022191,2]
[388792971,1759362650787,-1711.1,0.00022191,2]
[388792973,1759362650797,-2349.57,0.00022191,2]
[388792975,1759362650807,-1930.73,0.00022191,2]
[388792978,1759362650816,-842.49,0.00022191,2]
[388792980,1759362650829,-1453.91,0.00022191,2]
[388792982,1759362650839,-500.0,0.00022191,2]
[388792984,1759362650849,-213.14375018,0.00022191,2]
[388792986,1759362650858,-513.73,0.00022191,2]
[388792988,1759362650867,-500.0,0.00022191,2]
[388792990,1759362650877,-1888.08,0.00022191,2]
[388792992,1759362650886,-1069.4,0.00022191,2]
[388792994,1759362650896,-550.05,0.00022191,2]
[388792996,1759362650906,-1696.98,0.00022191,2]
[388792998,1759362650916,-3330.05,0.00022191,2]
[388793000,1759362650926,-500.0,0.00022191,2]
[388793002,1759362650935,-2118.35,0.00022191,2]
[388793004,1759362650945,-591.04,0.00022191,2]
[388793006,1759362650955,-5746.6,0.00022191,2]
[388793008,1759362650965,-500.0,0.00022191,2]
[388793010,1759362650975,-500.0,0.00022191,2]
[388793013,1759362650985,-774.89,0.00022191,2]
[388793015,1759362650995,-500.0,0.00022191,2]
[388793017,1759362651004,-500.0,0.00022191,2]
[388793019,1759362651014,-1164.64,0.00022191,2]
[388793021,1759362651023,-2509.21,0.00022191,2]
[388793023,1759362651033,-581.63,0.00022191,2]
[388793025,1759362651043,-3030.35,0.00022191,2]
[388793027,1759362651052,-1070.77,0.00022191,2]
[388793029,1759362651062,-500.0,0.00022191,2]
[388793031,1759362651072,-756.87356882,0.00022191,2]
[388793096,1759362651763,-626.37,0.00021917,2]
[388793097,1759362651772,-1099.17643118,0.00022191,2]
[388793098,1759362651782,-2908.73,0.00022191,2]
[388793099,1759362651792,-1992.43,0.00022191,2]
[388793100,1759362651801,-2103.88,0.00022191,2]
[388793101,1759362651811,-500.0,0.00022191,2]
[388793102,1759362651820,-1696.22,0.00022191,2]
[388793103,1759362651830,-1011.01,0.00022191,2]
[388793104,1759362651839,-466.52308434,0.00022191,2]
[388793105,1759362651851,-33.47691566,0.00022191,2]
[388793106,1759362651860,-271.3143473,0.00022191,2]
[388793107,1759362653489,-255.0,0.00019018,2]
[388793108,1759362653499,-207.0,0.00019018,2]
[388793109,1759362653510,-500.0,0.00021917,2]
[388793110,1759362653519,-150.0,0.00021922,2]
[388793111,1759362653529,-215.5,0.00022,2]
[388793112,1759362653539,-1660.96890364,0.00022191,2]
[388793113,1759362653551,-688.52674906,0.00022191,2]
[388793114,1759362653561,-500.0,0.00022191,2]
[388793115,1759362653571,-634.74042867,0.00022191,2]
[388793116,1759362653583,-302.11957133,0.00022191,2]
[388793117,1759362653594,-63.98430317,0.00022191,2]
[388793118,1759362653606,-436.01569683,0.00022191,2]
[388793119,1759362653616,-1968.97,0.00022191,2]
[388793120,1759362653627,-1317.98,0.00022191,2]
[388793121,1759362653637,-528.06,0.00022191,2]
[388793122,1759362653647,-935.93985109,0.00022191,2]
[388793123,1759362654120,-169.37,0.00021183,2]
[388793124,1759362654130,-286.24685344,0.00021917,2]
[388793125,1759362654140,-4495.33014891,0.00022191,2]
[388793126,1759362654149,-500.0,0.00022191,2]
[388793127,1759362654159,-597.67,0.00022191,2]
[388793128,1759362654168,-2877.7,0.00022191,2]
[388793129,1759362654179,-500.0,0.00022191,2]
[388793130,1759362654188,-2719.9,0.00022191,2]
[388793131,1759362654198,-500.0,0.00022191,2]
[388793132,1759362654207,-1836.18,0.00022191,2]
[388793133,1759362654217,-1665.03,0.00022191,2]
[388793134,1759362654227,-2071.82,0.00022191,2]
[388793135,1759362654236,-1228.55,0.00022191,2]
[388793136,1759362654245,-500.0,0.00022191,2]
[388793137,1759362654255,-1887.07,0.00022191,2]
[388793138,1759362654265,-912.24,0.00022191,2]
[388793139,1759362654274,-500.0,0.00022191,2]
[388793140,1759362654283,-500.0,0.00022191,2]
[388793141,1759362654293,-2511.17,0.00022191,2]
[388793142,1759362654302,-2150.34,0.00022191,2]
[388793143,1759362654312,-500.0,0.00022191,2]
[388793144,1759362654321,-702.81,0.00022191,2]
[388793145,1759362654331,-2131.03,0.00022191,2]
[388793146,1759362654340,-500.0,0.00022191,2]
[388793147,1759362654349,-2023.72,0.00022191,2]
[388793148,1759362654358,-2060.61,0.00022191,2]
[388793149,1759362654368,-563.15,0.00022191,2]
[388793150,1759362654377,-3311.13,0.00022191,2]
[388793151,1759362654386,-500.0,0.00022191,2]
[388793152,1759362654395,-500.0,0.00022191,2]
[388793153,1759362654411,-1748.72,0.00022191,2]
[388793154,1759362654420,-1544.11,0.00022191,2]
[388793155,1759362654429,-500.0,0.00022191,2]
[388793156,1759362654439,-907.98,0.00022191,2]
[388793157,1759362654450,-862.42,0.00022191,2]
[388793158,1759362654459,-500.0,0.00022191,2]
[388793159,1759362654468,-1345.33,0.00022191,2]
[388793160,1759362654480,-500.0,0.00022191,2]
[388793161,1759362654489,-2429.17,0.00022191,2]
[388793162,1759362654599,-1357.35,0.00022191,2]
[388793163,1759362654608,-2781.87,0.00022191,2]
[388793164,1759362654618,-2406.8,0.00022191,2]
[388793165,1759362654627,-1374.98,0.00022191,2]
[388793166,1759362654636,-1772.73,0.00022191,2]
[388793167,1759362654645,-831.21,0.00022191,2]
[388793168,1759362654655,-1395.81,0.00022191,2]
[388793169,1759362654664,-500.0,0.00022191,2]
[388793170,1759362654674,-1956.89,0.00022191,2]
[388793171,1759362654683,-2539.92,0.00022191,2]
[388793172,1759362654692,-1525.28,0.00022191,2]
[388793173,1759362654701,-1403.36,0.00022191,2]
[388793174,1759362654711,-1118.83,0.00022191,2]
[388793175,1759362654720,-500.0,0.00022191,2]
[388793176,1759362654730,-1859.75,0.00022191,2]
[388793177,1759362654739,-2165.44,0.00022191,2]
[388793178,1759362654748,-1309.33,0.00022191,2]
[388793179,1759362654757,-500.0,0.00022191,2]
[388793180,1759362654767,-500.0,0.00022191,2]
[388793181,1759362654776,-500.0,0.00022191,2]
[388793182,1759362654785,-1093.2,0.00022191,2]
[388793183,1759362654795,-1634.3,0.00022191,2]
[388793184,1759362654804,-1231.93,0.00022191,2]
[388793185,1759362654813,-500.0,0.00022191,2]
[388793186,1759362654822,-500.0,0.00022191,2]
[388793187,1759362654831,-500.0,0.00022191,2]
[388793188,1759362654840,-4678.47,0.00022191,2]
[388793189,1759362654850,-2249.71,0.00022191,2]
[388793190,1759362654859,-500.0,0.00022191,2]
[388793191,1759362654868,-1174.82,0.00022191,2]
[388793192,1759362654877,-500.0,0.00022191,2]
[388793193,1759362654896,-557.11,0.00022191,2]
[388793194,1759362654907,-500.0,0.00022191,2]
[388793195,1759362654916,-1297.42,0.00022191,2]
[388793196,1759362654926,-920.57,0.00022191,2]
[388793197,1759362654937,-747.08,0.00022191,2]
[388793198,1759362654946,-5776.59,0.00022191,2]
[388793199,1759362654955,-500.0,0.00022191,2]
[388793200,1759362654965,-500.0,0.00022191,2]
[388793201,1759362654974,-2136.67,0.00022191,2]
[388793202,1759362654983,-500.0,0.00022191,2]
[388793203,1759362654993,-666.75,0.00022191,2]
[388793204,1759362655002,-979.46,0.00022191,2]
[388793205,1759362655012,-546.73,0.00022191,2]
[388793206,1759362655021,-1719.66,0.00022191,2]
[388793207,1759362655030,-827.7,0.00022191,2]
[388793208,1759362655040,-4360.1,0.00022191,2]
[388793209,1759362655050,-500.0,0.00022191,2]
[388793210,1759362655059,-500.0,0.00022191,2]
[388793211,1759362655069,-1296.24,0.00022191,2]
[388793212,1759362655078,-500.0,0.00022191,2]
[388793213,1759362655089,-500.0,0.00022191,2]
[388793214,1759362655099,-1698.44,0.00022191,2]
[388793215,1759362655108,-500.0,0.00022191,2]
[388793216,1759362655117,-500.0,0.00022191,2]
[388793217,1759362655127,-1094.86,0.00022191,2]
[388793218,1759362655137,-577.83,0.00022191,2]
[388793219,1759362655147,-500.0,0.00022191,2]
[388793220,1759362655156,-500.0,0.00022191,2]
[388793221,1759362655165,-1816.58,0.00022191,2]
[388793222,1759362655175,-524.75,0.00022191,2]
[388793223,1759362655184,-500.0,0.00022191,2]
[388793224,1759362655194,-500.0,0.00022191,2]
[388793225,1759362655203,-500.0,0.00022191,2]
[388793226,1759362655212,-1777.6,0.00022191,2]
[388793227,1759362655221,-527.09,0.00022191,2]
[388793228,1759362655231,-500.0,0.00022191,2]
[388793229,1759362655239,-755.69,0.00022191,2]
[388793230,1759362655248,-2801.45,0.00022191,2]
[388793231,1759362655258,-2029.44,0.00022191,2]
[388793232,1759362655268,-624.62414746,0.00022191,2]
[388793233,1759362655278,-500.0,0.00022191,2]
[388793234,1759362655288,-267.7225395,0.00022191,2]
[388793235,1759362655297,-500.0,0.00022191,2]
[388793236,1759362655306,-974.29,0.00022191,2]
[388793237,1759362655315,-594.78,0.00022191,2]
[388793238,1759362655324,-521.34,0.00022191,2]
[388793239,1759362655334,-2414.32,0.00022191,2]
[388793240,1759362655343,-2302.21,0.00022191,2]
[388793241,1759362655352,-1421.05,0.00022191,2]
[388793242,1759362655361,-500.0,0.00022191,2]
[388793243,1759362655370,-1260.06,0.00022191,2]
[388793244,1759362655379,-500.0,0.00022191,2]
[388793245,1759362655388,-1765.01,0.00022191,2]
[388793246,1759362655398,-574.76,0.00022191,2]
[388793247,1759362655412,-1066.36,0.00022191,2]
[388793248,1759362655421,-500.0,0.00022191,2]
[388793249,1759362655431,-523.06,0.00022191,2]
[388793250,1759362655440,-1116.44,0.00022191,2]
[388793251,1759362655450,-906.64,0.00022191,2]
[388793252,1759362655459,-1655.47,0.00022191,2]
[388793253,1759362655468,-500.0,0.00022191,2]
[388793254,1759362655478,-736.1,0.00022191,2]
[388793255,1759362655489,-2136.04,0.00022191,2]
[388793256,1759362655499,-500.0,0.00022191,2]
[388793257,1759362655508,-1253.21,0.00022191,2]
[388793258,1759362655518,-2424.41,0.00022191,2]
[388793259,1759362655527,-2131.31,0.00022191,2]
[388793260,1759362655536,-638.13,0.00022191,2]
[388793261,1759362655545,-1920.46,0.00022191,2]
[388793262,1759362655555,-603.98,0.00022191,2]
[388793263,1759362655563,-569.59,0.00022191,2]
[388793264,1759362655572,-6270.13,0.00022191,2]
[388793265,1759362655582,-1746.23,0.00022191,2]
[388793266,1759362655591,-500.0,0.00022191,2]
[388793267,1759362655600,-500.0,0.00022191,2]
[388793268,1759362655609,-500.0,0.00022191,2]
[388793269,1759362655618,-550.66,0.00022191,2]
[388793270,1759362655627,-500.0,0.00022191,2]
[388793271,1759362655637,-847.91,0.00022191,2]
[388793272,1759362655646,-827.17,0.00022191,2]
[388793273,1759362655655,-500.0,0.00022191,2]
[388793274,1759362655664,-500.0,0.00022191,2]
[388793275,1759362655674,-1285.71,0.00022191,2]
[388793276,1759362655684,-1068.67,0.00022191,2]
[388793277,1759362655693,-500.0,0.00022191,2]
[388793278,1759362655702,-512.49,0.00022191,2]
[388793279,1759362655711,-669.73,0.00022191,2]
[388793280,1759362655721,-789.76,0.00022191,2]
[388793281,1759362655731,-5592.97,0.00022191,2]
[388793282,1759362655740,-500.0,0.00022191,2]
[388793283,1759362655749,-500.0,0.00022191,2]
[388793284,1759362655758,-566.18,0.00022191,2]
[388793285,1759362655768,-535.21,0.00022191,2]
[388793286,1759362655777,-500.0,0.00022191,2]
[388793287,1759362655786,-2257.38,0.00022191,2]
[388793288,1759362655795,-528.67,0.00022191,2]
[388793289,1759362655804,-5749.33,0.00022191,2]
[388793290,1759362655814,-2433.79,0.00022191,2]
[388793291,1759362655823,-1692.99,0.00022191,2]
[388793292,1759362655832,-500.0,0.00022191,2]
[388793293,1759362655841,-500.0,0.00022191,2]
[388793294,1759362655850,-2518.61,0.00022191,2]
[388793295,1759362655859,-500.0,0.00022191,2]
[388793296,1759362655868,-782.76,0.00022191,2]
[388793297,1759362655877,-1250.84,0.00022191,2]
[388793298,1759362655886,-1900.68,0.00022191,2]
[388793299,1759362655896,-1638.93,0.00022191,2]
[388793300,1759362655904,-500.0,0.00022191,2]
[388793301,1759362655913,-500.0,0.00022191,2]
[388793302,1759362655923,-500.0,0.00022191,2]
[388793303,1759362655932,-500.0,0.00022191,2]
[388793304,1759362655941,-986.5,0.00022191,2]
[388793305,1759362655950,-575.71956178,0.00022191,2]
[388793306,1759362655959,-2204.13,0.00022191,2]
[388793307,1759362655970,-2843.92,0.00022191,2]
[388793308,1759362655979,-500.0,0.00022191,2]
[388793309,1759362655988,-1266.38,0.00022191,2]
[388793310,1759362655998,-735.26,0.00022191,2]
[388793311,1759362656008,-500.0,0.00022191,2]
[388793312,1759362656017,-1233.17,0.00022191,2]
[388793313,1759362656027,-2066.69,0.00022191,2]
[388793314,1759362656037,-1840.83,0.00022191,2]
[388793315,1759362656047,-500.0,0.00022191,2]
[388793316,1759362656057,-500.0,0.00022191,2]
[388793317,1759362656066,-2392.43,0.00022191,2]
[388793318,1759362656075,-500.0,0.00022191,2]
[388793319,1759362656084,-447.64167113,0.00022191,2]
[388793320,1759362656094,-559.61,0.00022191,2]
[388793321,1759362656103,-807.25,0.00022191,2]
[388793322,1759362656112,-782.19,0.00022191,2]
[388793323,1759362656121,-991.18,0.00022191,2]
[388793324,1759362656131,-500.0,0.00022191,2]
[388793325,1759362656140,-568.12,0.00022191,2]
[388793326,1759362656149,-4428.45,0.00022191,2]
[388793327,1759362656158,-3124.54,0.00022191,2]
[388793328,1759362656168,-727.53,0.00022191,2]
[388793329,1759362656177,-500.0,0.00022191,2]
[388793330,1759362656186,-2207.36,0.00022191,2]
[388793331,1759362656195,-596.39,0.00022191,2]
[388793332,1759362656205,-500.0,0.00022191,2]
[388793333,1759362656214,-2257.51,0.00022191,2]
[388793334,1759362656223,-500.0,0.00022191,2]
[388793335,1759362656232,-2274.93,0.00022191,2]
[388793336,1759362656241,-500.0,0.00022191,2]
[388793337,1759362656250,-500.0,0.00022191,2]
[388793338,1759362656259,-500.0,0.00022191,2]
[388793339,1759362656269,-1942.3,0.00022191,2]
[388793340,1759362656279,-500.0,0.00022191,2]
[388793341,1759362656288,-442.55395543,0.00022191,2]